fUSD/lending_fUSD_20240624
["ID","MTS","AMOUNT","RATE_DAILY","PERIOD"]
[330280444,1719225041823,-386.46252369,0.00019178,2]
[330280445,1719225041833,-153.92747631,0.00019178,2]
[330280446,1719225041846,-346.07252369,0.00019178,2]
[330280447,1719225041856,-1380.03,0.00019178,2]
[330280448,1719225041867,-500.0,0.00019178,2]
[330280449,1719225041876,-643.9,0.00019178,2]
[330280450,1719225041885,-1579.73,0.00019178,2]
[330280451,1719225041895,-529.61,0.00019178,2]
[330280452,1719225041905,-500.0,0.00019178,2]
[330280453,1719225041915,-12605.26,0.00019178,2]
[330280454,1719225041925,-500.0,0.00019178,2]
[330280455,1719225041934,-618.05,0.00019178,2]
[330280456,1719225041949,-551.59,0.00019178,2]
[330280457,1719225041958,-514.24317537,0.00019178,2]
[330280458,1719225041967,-500.0,0.00019178,2]
[330280459,1719225041977,-889.71,0.00019178,2]
[330280460,1719225041986,-500.0,0.00019178,2]
[330280461,1719225041995,-1820.41,0.00019178,2]
[330280462,1719225042004,-500.0,0.00019178,2]
[330280463,1719225042013,-1460.94,0.00019178,2]
[330280464,1719225042023,-1535.98,0.00019178,2]
[330280465,1719225042033,-500.0,0.00019178,2]
[330280466,1719225042042,-1182.0,0.00019178,2]
[330280467,1719225042052,-500.0,0.00019178,2]
[330280468,1719225042062,-500.0,0.00019178,2]
[330280469,1719225042072,-500.0,0.00019178,2]
[330280470,1719225042082,-83.47430093,0.00019178,2]
[330280471,1719225042095,-473.58569907,0.00019178,2]
[330280472,1719225042105,-524.45378179,0.00019178,2]
[330280473,1719225042115,-500.0,0.00019178,2]
[330280474,1719225042125,-316.86997668,0.00019178,2]
[330280475,1719225042138,-183.13002332,0.00019178,2]
[330280476,1719225042148,-188.22075392,0.00019178,2]
[330280477,1719225042160,-1118.66924608,0.00019178,2]
[330280478,1719225042170,-302.60817592,0.00019178,2]
[330280479,1719225042182,-197.39182408,0.00019178,2]
[330280480,1719225042193,-1574.17,0.00019178,2]
[330280481,1719225042203,-313.05501995,0.00019178,2]
[330280482,1719225042215,-198.88498005,0.00019178,2]
[330280483,1719225042224,-862.27869468,0.00019178,2]
[330280484,1719225042236,-269.43130532,0.00019178,2]
[330280485,1719225042246,-238.83097737,0.00019178,2]
[330280486,1719225042258,-266.24557645,0.00019178,2]
[330280487,1719225042268,-403.75442355,0.00019178,2]
[330280488,1719225042284,-96.24557645,0.00019178,2]
[330280489,1719225042294,-435.31025084,0.00019178,2]
[330280490,1719225042306,-64.68974916,0.00019178,2]
[330280491,1719225042317,-521.83,0.00019178,2]
[330280492,1719225042327,-541.95,0.00019178,2]
[330280493,1719225042336,-500.0,0.00019178,2]
[330280494,1719225042345,-500.0,0.00019178,2]
[330280495,1719225042357,-500.0,0.00019178,2]
[330280496,1719225042367,-203.66439359,0.00019178,2]
[330280497,1719225042379,-587.75560641,0.00019178,2]
[330280498,1719225042388,-113.66155448,0.00019178,2]
[330280499,1719225042400,-526.41,0.00019178,2]
[330280500,1719225042412,-272.12555121,0.00019178,2]
[330280501,1719225042423,-2406.81289431,0.00019178,2]
[330280502,1719225042433,-2459.67,0.00019178,2]
[330280503,1719225042445,-500.0,0.00019178,2]
[330280504,1719225042454,-500.0,0.00019178,2]
[330280505,1719225042464,-500.0,0.00019178,2]
[330280506,1719225042473,-500.0,0.00019178,2]
[330280507,1719225042484,-500.0,0.00019178,2]
[330280508,1719225042494,-500.0,0.00019178,2]
[330280509,1719225042503,-1087.92,0.00019178,2]
[330280510,1719225042513,-500.0,0.00019178,2]
[330280511,1719225042522,-680.2,0.00019178,2]
[330280512,1719225042532,-500.0,0.00019178,2]
[330280513,1719225042541,-500.0,0.00019178,2]
[330280514,1719225042551,-500.0,0.00019178,2]
[330280515,1719225042560,-619.68,0.00019178,2]
[330280516,1719225042570,-579.36,0.00019178,2]
[330280517,1719225042579,-4802.55,0.00019178,2]
[330280518,1719225042589,-578.21,0.00019178,2]
[330280519,1719225042598,-527.80373606,0.00019178,2]
[330280520,1719225042608,-1311.83,0.00019178,2]
[330280521,1719225042618,-572.48,0.00019178,2]
[330280522,1719225042628,-500.0,0.00019178,2]
[330280523,1719225042638,-514.84288664,0.00019178,2]
[330280524,1719225042647,-1058.95,0.00019178,2]
[330280525,1719225042656,-501.04635745,0.00019178,2]
[330280526,1719225042666,-951.69,0.00019178,2]
[330280527,1719225042676,-500.0,0.00019178,2]
[330280528,1719225042687,-500.0,0.00019178,2]
[330280529,1719225042696,-532.99,0.00019178,2]
[330280530,1719225042706,-500.0,0.00019178,2]
[330280531,1719225042716,-500.0,0.00019178,2]
[330280532,1719225042726,-500.0,0.00019178,2]
[330280533,1719225042736,-500.0,0.00019178,2]
[330280534,1719225042746,-250.0,0.00019178,2]
[330280535,1719225042757,-3113.09,0.00019178,2]
[330280536,1719225042767,-500.0,0.00019178,2]
[330280537,1719225042777,-518.60882894,0.00019178,2]
[330280538,1719225042787,-700.22,0.00019178,2]
[330280539,1719225042797,-500.0,0.00019178,2]
[330280540,1719225042807,-500.0,0.00019178,2]
[330280541,1719225042816,-500.0,0.00019178,2]
[330280542,1719225042826,-763.57,0.00019178,2]
[330280543,1719225042836,-1118.4,0.00019178,2]
[330280544,1719225042847,-644.94,0.00019178,2]
[330280545,1719225042856,-500.0,0.00019178,2]
[330280546,1719225042866,-550.88,0.00019178,2]
[330280547,1719225042876,-725.15,0.00019178,2]
[330280548,1719225042886,-500.0,0.00019178,2]
[330280549,1719225042896,-1147.77,0.00019178,2]
[330280550,1719225042905,-500.0,0.00019178,2]
[330280551,1719225042916,-500.0,0.00019178,2]
[330280552,1719225042926,-686.43,0.00019178,2]
[330280553,1719225042935,-501.50261637,0.00019178,2]
[330280554,1719225042946,-881.49,0.00019178,2]
[330280555,1719225042955,-500.0,0.00019178,2]
[330280556,1719225042965,-2961.27,0.00019178,2]
[330280557,1719225042975,-500.0,0.00019178,2]
[330280558,1719225042985,-500.0,0.00019178,2]
[330280559,1719225042994,-664.2,0.00019178,2]
[330280560,1719225043003,-1698.77,0.00019178,2]
[330280561,1719225043013,-503.05,0.00019178,2]
[330280562,1719225043023,-500.0,0.00019178,2]
[330280563,1719225043033,-500.0,0.00019178,2]
[330280564,1719225043043,-500.0,0.00019178,2]
[330280565,1719225043052,-500.0,0.00019178,2]
[330280566,1719225043061,-500.0,0.00019178,2]
[330280567,1719225043071,-500.0,0.00019178,2]
[330280568,1719225043081,-848.74,0.00019178,2]
[330280569,1719225043091,-500.0,0.00019178,2]
[330280570,1719225043101,-2903.66,0.00019178,2]
[330280571,1719225043111,-1655.34,0.00019178,2]
[330280572,1719225043120,-1789.08,0.00019178,2]
[330280573,1719225043130,-800.76,0.00019178,2]
[330280574,1719225043140,-1764.59,0.00019178,2]
[330280575,1719225043149,-500.0,0.00019178,2]
[330280576,1719225043159,-1132.19,0.00019178,2]
[330280577,1719225043169,-500.0,0.00019178,2]
[330280578,1719225043179,-5136.92,0.00019178,2]
[330280579,1719225043188,-500.0,0.00019178,2]
[330280580,1719225043198,-1294.19,0.00019178,2]
[330280581,1719225043208,-1633.67,0.00019178,2]
[330280582,1719225043217,-1045.04,0.00019178,2]
[330280583,1719225043227,-500.0,0.00019178,2]
[330280584,1719225043237,-610.71,0.00019178,2]
[330280585,1719225043246,-8914.29,0.00019178,2]
[330280586,1719225043256,-500.0,0.00019178,2]
[330280587,1719225043267,-1612.56,0.00019178,2]
[330280588,1719225043277,-500.0,0.00019178,2]
[330280589,1719225043291,-811.77,0.00019178,2]
[330280590,1719225043301,-1210.03,0.00019178,2]
[330280591,1719225043311,-1222.88,0.00019178,2]
[330280592,1719225043321,-1412.12,0.00019178,2]
[330280593,1719225043331,-250.0,0.00019178,2]
[330280594,1719225043341,-152.4294645,0.00019178,2]
[330280595,1719225043352,-208.05378864,0.0001923,2]
[330280596,1719225043364,-305.13007106,0.00019243,2]
[330280597,1719225043374,-1796.92969583,0.00019294,2]
[330280598,1719225043384,-700.0,0.000193,3]
[330280599,1719225043394,-197.97705073,0.00019352,2]
[330280600,1719225043404,-253.90432169,0.00019369,2]
[330280602,1719225043414,-1644.67208042,0.00019425,2]
[330280604,1719225043424,-1012.62731708,0.00019433,2]
[330280607,1719225043434,-2688.20268012,0.00019445,7]
[330280610,1719225043446,-500.0,0.00019451,4]
[330280612,1719225043456,-500.0,0.00019451,2]
[330280614,1719225043466,-500.0,0.00019451,4]
[330280616,1719225043476,-2830.99593327,0.00019451,2]
[330280618,1719225043486,-341.1594427,0.00019452,4]
[330280620,1719225043496,-500.0,0.00019452,4]
[330280622,1719225043505,-500.0,0.00019452,4]
[330280624,1719225043515,-503.87621644,0.00019452,4]
[330280626,1719225043525,-503.74641847,0.00019452,4]
[330280628,1719225043536,-211.70372228,0.00019452,4]
[330280630,1719225043546,-500.0,0.00019452,4]
[330280632,1719225043555,-500.0,0.00019452,4]
[330280634,1719225043565,-500.0,0.00019452,4]
[330280636,1719225043575,-5030.59366584,0.00019452,4]
[330280638,1719225043585,-500.0,0.00019452,4]
[330280640,1719225043594,-502.14497099,0.00019452,4]
[330280642,1719225043604,-500.0,0.00019452,4]
[330280644,1719225043614,-503.40345122,0.00019452,4]
[330280646,1719225043624,-500.0,0.00019452,4]
[330280647,1719225043634,-500.0,0.00019452,4]
[330280648,1719225043643,-500.0,0.00019452,4]
[330280649,1719225043653,-500.0,0.00019452,4]
[330280650,1719225043663,-596.49,0.00019452,4]
[330280652,1719225043672,-500.0,0.00019452,4]
[330280654,1719225043682,-500.0,0.00019452,4]
[330280656,1719225043694,-562.4,0.00019452,4]
[330280658,1719225043703,-500.0,0.00019452,4]
[330280660,1719225043712,-500.0,0.00019452,4]
[330280662,1719225043721,-500.0,0.00019452,4]
[330280664,1719225043731,-563.47643228,0.00019452,4]
[330280666,1719225043741,-500.0,0.00019452,4]
[330280668,1719225043751,-502.22937198,0.00019452,4]
[330280670,1719225043760,-500.0,0.00019452,4]
[330280672,1719225043770,-500.0,0.00019452,4]
[330280674,1719225043780,-500.0,0.00019452,4]
[330280676,1719225043790,-500.0,0.00019452,4]
[330280678,1719225043800,-500.0,0.00019452,4]
[330280680,1719225043810,-501.04285953,0.00019452,4]
[330280682,1719225043820,-500.0,0.00019452,4]
[330280684,1719225043830,-501.43230938,0.00019452,4]
[330280685,1719225043840,-342.59,0.00019452,4]
[330280686,1719225043850,-793.9,0.00019452,4]
[330280687,1719225043860,-500.0,0.00019452,4]
[330280688,1719225043869,-836.95,0.00019452,4]
[330280689,1719225043879,-745.56,0.00019452,4]
[330280690,1719225043889,-500.0,0.00019452,4]
[330280691,1719225043899,-152.889192,0.00019452,2]
[330280692,1719225043909,-151.0,0.00019452,2]
[330280693,1719225043919,-151.0,0.00019452,2]
[330280694,1719225043929,-151.0,0.00019452,2]
[330280695,1719225043943,-151.0,0.00019452,2]
[330280696,1719225043953,-500.0,0.00019452,4]
[330280697,1719225043966,-48.90884763,0.00019452,4]
[330280698,1719225044571,-683.44115237,0.00019452,4]
[330280699,1719225044580,-53.17702644,0.00019452,4]
[330280700,1719225044592,-446.82297356,0.00019452,4]
[330280701,1719225044602,-549.67,0.00019452,4]
[330280702,1719225044611,-897.58151641,0.00019452,4]
[330280703,1719225044623,-545.15848359,0.00019452,4]
[330280704,1719225044633,-500.0,0.00019452,4]
[330280705,1719225044643,-41.18822306,0.00019452,4]
[330280735,1719225046482,-159.3,0.00018413,2]
[330280737,1719225046491,-148.51734435,0.00019369,2]
[330280739,1719225046502,-313.3815487,0.00019369,2]
[330280742,1719225046513,-1736.9583453,0.00019369,2]
[330280744,1719225046522,-1030.34177694,0.00019452,4]
[330280746,1719225046531,-513.20557468,0.00019452,4]
[330280748,1719225046540,-265.69899481,0.00019452,4]
[330280750,1719225046551,-369.04818863,0.00019452,4]
[330280752,1719225046562,-53.43281656,0.00019452,4]
[330280754,1719225046571,-1010.46,0.00019452,4]
[330280756,1719225046581,-500.0,0.00019452,4]
[330280758,1719225046590,-153.957275,0.00019452,2]
[330280759,1719225046599,-316.43930864,0.00019452,4]
[330280760,1719225046611,-248.09069136,0.00019452,4]
[330280762,1719225046620,-518.13,0.00019452,4]
[330280764,1719225046629,-500.0,0.00019452,4]
[330280766,1719225046638,-500.0,0.00019452,4]
[330280768,1719225046646,-500.0,0.00019452,4]
[330280770,1719225046655,-1067.35908066,0.00019452,2]
[330280772,1719225046664,-509.2,0.00019452,4]
[330280774,1719225046673,-500.0,0.00019452,4]
[330280775,1719225046683,-153.342797,0.00019452,2]
[330280777,1719225046693,-500.0,0.00019452,4]
[330280779,1719225046703,-603.14,0.00019452,4]
[330280781,1719225046712,-589.98,0.00019452,4]
[330280783,1719225046722,-151.0,0.00019452,2]
[330280784,1719225046731,-500.0,0.00019452,4]
[330280785,1719225046741,-500.0,0.00019452,4]
[330280786,1719225046751,-151.0,0.00019452,2]
[330280787,1719225046759,-639.98,0.00019452,4]
[330280788,1719225046768,-561.3,0.00019452,4]
[330280789,1719225046778,-538.17,0.00019452,4]
[330280790,1719225046787,-529.60425561,0.00019452,4]
[330280791,1719225046796,-500.0,0.00019452,4]
[330280792,1719225046805,-500.0,0.00019452,4]
[330280793,1719225046814,-500.0,0.00019452,4]
[330280794,1719225046823,-515.68,0.00019452,4]
[330280795,1719225046832,-504.4,0.00019452,4]
[330280796,1719225046841,-635.71,0.00019452,4]
[330280797,1719225046850,-500.0,0.00019452,4]
[330280798,1719225046859,-500.0,0.00019452,4]
[330280799,1719225046868,-500.0,0.00019452,4]
[330280800,1719225046877,-500.0,0.00019452,4]
[330280801,1719225046886,-527.33,0.00019452,4]
[330280802,1719225046896,-276.056939,0.00019452,2]
[330280803,1719225046905,-500.0,0.00019452,4]
[330280804,1719225046914,-566.36,0.00019452,4]
[330280805,1719225046924,-500.0,0.00019452,4]
[330280806,1719225046934,-562.91,0.00019452,4]
[330280807,1719225046947,-360.60032001,0.00019452,2]
[330280808,1719225046960,-139.39967999,0.00019452,2]
[330280809,1719225046969,-313.84712005,0.00019452,4]
[330280810,1719225046980,-186.15287995,0.00019452,4]
[330280811,1719225046994,-500.0,0.00019452,4]
[330280812,1719225047003,-500.0,0.00019452,4]
[330280813,1719225047013,-573.76,0.00019452,4]
[330280814,1719225047023,-606.04,0.00019452,4]
[330280815,1719225047033,-500.0,0.00019452,4]
[330280816,1719225047042,-505.46,0.00019452,4]
[330280818,1719225047051,-500.0,0.00019452,4]
[330280819,1719225047060,-616.96,0.00019452,4]
[330280843,1719225047263,-500.0,0.00019452,4]
[330280845,1719225047274,-433.84506069,0.00019452,4]
[330280847,1719225047290,-283.02493931,0.00019452,4]
[330280849,1719225047299,-193.85,0.00019452,4]
[330280851,1719225047308,-515.43819639,0.00019452,4]
[330280853,1719225047319,-500.0,0.00019452,4]
[330280855,1719225047329,-500.0,0.00019452,4]
[330280857,1719225047339,-607.7,0.00019452,4]
[330280858,1719225047348,-500.0,0.00019452,4]
[330280859,1719225047359,-500.0,0.00019452,4]
[330280860,1719225047368,-604.49,0.00019452,4]
[330280861,1719225047377,-500.0,0.00019452,4]
[330280862,1719225047386,-532.5,0.00019452,4]
[330280863,1719225047395,-721.91,0.00019452,4]
[330280864,1719225047404,-151.0,0.00019452,2]
[330280865,1719225047413,-540.49,0.00019452,4]
[330280866,1719225047422,-537.82,0.00019452,4]
[330280867,1719225047431,-500.0,0.00019452,4]
[330280868,1719225047441,-636.69,0.00019452,4]
[330280869,1719225047451,-500.0,0.00019452,4]
[330280870,1719225047460,-500.0,0.00019452,4]
[330280871,1719225047469,-151.0,0.00019452,2]
[330280872,1719225047479,-500.0,0.00019452,4]
[330280873,1719225047489,-2375.97,0.00019452,4]
[330280874,1719225047497,-151.0,0.00019452,2]
[330280875,1719225047506,-500.0,0.00019452,4]
[330280876,1719225047515,-500.0,0.00019452,4]
[330280877,1719225047524,-151.0,0.00019452,2]
[330280878,1719225047533,-627.11,0.00019452,4]
[330280879,1719225047542,-500.0,0.00019452,4]
[330280880,1719225047551,-518.7777558,0.00019452,4]
[330280881,1719225047559,-539.3,0.00019452,4]
[330280882,1719225047568,-500.0,0.00019452,4]
[330280883,1719225047577,-151.0,0.00019452,2]
[330280884,1719225047586,-500.0,0.00019452,4]
[330280885,1719225047595,-548.48,0.00019452,4]
[330280886,1719225047604,-500.0,0.00019452,4]
[330280887,1719225047613,-500.0,0.00019452,4]
[330280888,1719225047622,-500.0,0.00019452,4]
[330280889,1719225047631,-708.12,0.00019452,4]
[330280890,1719225047640,-151.0,0.00019452,2]
[330280891,1719225047649,-500.0,0.00019452,4]
[330280892,1719225047658,-151.0,0.00019452,2]
[330280893,1719225047667,-797.8,0.00019452,4]
[330280894,1719225047677,-622.08,0.00019452,4]
[330280895,1719225047686,-500.0,0.00019452,4]
[330280896,1719225047696,-151.0,0.00019452,2]
[330280897,1719225047706,-506.70508868,0.00019452,4]
[330280898,1719225047715,-525.38268664,0.00019452,4]
[330280899,1719225047724,-500.0,0.00019452,4]
[330280900,1719225047733,-500.0,0.00019452,4]
[330280901,1719225047744,-509.72575094,0.00019452,4]
[330280902,1719225047753,-500.0,0.00019452,4]
[330280903,1719225047763,-500.0,0.00019452,4]
[330280904,1719225047772,-500.0,0.00019452,4]
[330280905,1719225047781,-522.96950918,0.00019452,4]
[330280906,1719225047791,-500.0,0.00019452,4]
[330280907,1719225047800,-500.0,0.00019452,4]
[330280908,1719225047809,-679.41,0.00019452,4]
[330280909,1719225047818,-500.0,0.00019452,4]
[330280910,1719225047827,-500.0,0.00019452,4]
[330280911,1719225047836,-608.81,0.00019452,4]
[330280912,1719225047845,-500.0,0.00019452,4]
[330280913,1719225047854,-505.34712217,0.00019452,4]
[330280914,1719225047863,-696.94,0.00019452,4]
[330280915,1719225047873,-500.0,0.00019452,4]
[330280916,1719225047882,-500.0,0.00019452,4]
[330280917,1719225047891,-500.0,0.00019452,4]
[330280918,1719225047901,-151.0,0.00019452,2]
[330280919,1719225047911,-151.0,0.00019452,2]
[330280920,1719225047920,-164.30120214,0.00019452,4]
[330280921,1719225047935,-486.91192548,0.00019452,4]
[330280922,1719225047990,-679.67,0.00019178,2]
[330280923,1719225048000,-92.84687238,0.00019452,4]
[330280924,1719225048009,-151.0,0.00019452,2]
[330280925,1719225048019,-500.0,0.00019452,4]
[330280926,1719225048029,-151.0,0.00019452,2]
[330280927,1719225048038,-103.07979351,0.00019452,2]
[330280928,1719225048087,-61.52219595,0.00019452,2]
[330280929,1719225048099,-36.41195254,0.00019452,2]
[330280930,1719225048109,-871.1,0.00019452,4]
[330280931,1719225048119,-500.0,0.00019452,4]
[330280932,1719225048128,-500.0,0.00019452,4]
[330280933,1719225048137,-547.93,0.00019452,4]
[330280934,1719225048147,-151.0,0.00019452,2]
[330280935,1719225048157,-500.0,0.00019452,4]
[330280936,1719225048166,-500.0,0.00019452,4]
[330280937,1719225048176,-500.0,0.00019452,4]
[330280938,1719225048186,-507.3572088,0.00019452,4]
[330280939,1719225048197,-831.68,0.00019452,4]
[330280940,1719225048206,-151.0,0.00019452,2]
[330280941,1719225048215,-502.58351565,0.00019452,4]
[330280942,1719225048224,-601.63732301,0.00019452,4]
[330280943,1719225048472,-594.81,0.00019178,2]
[330280944,1719225048482,-177.10267699,0.00019452,4]
[330280945,1719225048492,-165.51230138,0.00019452,4]
[330280946,1719225048501,-527.9161252,0.00019452,4]
[330280947,1719225048513,-690.2938748,0.00019452,4]
[330280948,1719225048523,-105.10742845,0.00019452,2]
[330280949,1719225107330,466.58556113,0.00025,30]
[330280957,1719225224421,698.71711478,0.00014,2]
[330280958,1719225224460,631.17591647,0.00014,2]
[330280959,1719225224509,980.02508442,0.00014,2]
[330280960,1719225224572,991.6457822,0.00014,2]
[330280961,1719225224624,1551.57615702,0.00014,2]
[330280962,1719225224669,1262.35183294,0.00014,2]
[330280963,1719225224706,1490.22628443,0.00014,2]
[330280964,1719225224750,1279.37593058,0.00014,2]
[330280965,1719225224786,1589.17753147,0.00014,2]
[330280966,1719225224822,1324.59491606,0.00014,2]
[330280968,1719225253920,3624.59665185,0.00011,2]
[330280969,1719225295681,300.0,0.00011,2]
[330280972,1719225397299,155.61182952,0.00013333,2]
[330280974,1719225407810,625.71647482,0.0001251,2]
[330280975,1719225408736,186.60020289,0.00013333,2]
[330280976,1719225423259,5594.31883355,0.00013333,2]
[330280978,1719225439452,209.96997035,0.0002941,120]
[330280980,1719225656777,182.19,0.00025698,120]
[330280998,1719226232916,-1658.8,0.000139,2]
[330281000,1719226232927,-255.5511,0.000139,2]
[330281001,1719226232937,-300.0,0.00013999,2]
[330281002,1719226232946,-1167.94292903,0.00014,2]
[330281004,1719226232958,-25164.42971798,0.00014,2]
[330281006,1719226232969,-322.46768831,0.00014,2]
[330281007,1719226232980,-8864.94616718,0.00014,2]
[330281013,1719226239265,-25244.2287553,0.00014,2]
[330281016,1719226239277,-1176.13963172,0.00014,2]
[330281020,1719226239292,-1621.92213545,0.00014,2]
[330281023,1719226239305,-2447.99999999,0.00014,2]
[330281026,1719226239317,-2985.65328844,0.00014,2]
[330281031,1719226239330,-3069.4767,0.00014,2]
[330281082,1719226240849,-1818.9,0.00014,2]
[330281084,1719226240862,-356.19588052,0.00014,2]
[330281086,1719226240873,-552.33090042,0.00014,2]
[330281088,1719226240885,-3466.91092241,0.00014,2]
[330281090,1719226241554,-1035.77220832,0.00014,2]
[330281091,1719226241565,-446.8793454,0.00014,2]
[330281092,1719226241576,-320.10297877,0.00014,2]
[330281117,1719226243782,-2043.72080312,0.00014,2]
[330281118,1719226244510,-100693.2571677,0.00014,2]
[330281119,1719226244521,-567.4,0.0001453,2]
[330281120,1719226244531,-3595.209768,0.00014968,2]
[330281121,1719226244546,-106475.33124251,0.00015,2]
[330281122,1719226245438,-9527.11088934,0.00015,2]
[330281123,1719226245449,-809.05905698,0.00015,2]
[330281124,1719226245460,-8133.41865707,0.00015,2]
[330281125,1719226245471,-815.56430584,0.00015,2]
[330281126,1719226245482,-74308.12861446,0.00015,2]
[330281127,1719226245491,-150.0,0.00015315,2]
[330281128,1719226245501,-292.20084944,0.00015336,2]
[330281129,1719226245510,-292.20084944,0.00015336,2]
[330281130,1719226245520,-420.0,0.00015337,2]
[330281131,1719226245528,-2123.24694995,0.00016311,2]
[330281132,1719226245539,-327.24,0.00016387,2]
[330281133,1719226245548,-173.5,0.00016416,2]
[330281134,1719226245557,-173.86,0.0001643,2]
[330281135,1719226245566,-500.0,0.00016611,2]
[330281136,1719226245575,-1731.11049109,0.00016611,2]
[330281137,1719226246921,-457.55470568,0.00016611,2]
[330281141,1719226246933,-513.13480323,0.00016611,2]
[330281142,1719226246942,-819.19,0.00016691,2]
[330281143,1719226246952,-567.4,0.00016794,2]
[330281146,1719226246961,-587.0,0.00016802,2]
[330281147,1719226246970,-1210.0,0.00016855,2]
[330281148,1719226246979,-250.0,0.00017015,2]
[330281149,1719226246989,-182.19,0.00017132,2]
[330281150,1719226246998,-1000.0,0.00017146,2]
[330281151,1719226247007,-2123.24694995,0.00017408,2]
[330281152,1719226247016,-4123.0,0.000175,2]
[330281153,1719226247026,-283.54219834,0.00017912,2]
[330281154,1719226247035,-323.43681993,0.00018404,2]
[330281155,1719226247045,-823.0,0.00018408,2]
[330281156,1719226247054,-2123.24694995,0.00018504,2]
[330281157,1719226247063,-1012.62731708,0.00018777,2]
[330281158,1719226247073,-307.0375,0.00018834,2]
[330281159,1719226247082,-392.83460731,0.00018876,2]
[330281160,1719226247091,-245000.0,0.00018877,2]
[330281161,1719226247100,-100000.0,0.00018877,2]
[330281162,1719226247109,-491.61691634,0.00018877,2]
[330281163,1719226247119,-1000.0,0.00018878,2]
[330281164,1719226247128,-150.79,0.000189,2]
[330281165,1719226247137,-150.79,0.000189,2]
[330281166,1719226247147,-150.79,0.0001899,2]
[330281167,1719226247157,-59827.32697671,0.00019,2]
[330281168,1719226247166,-567.4,0.00019058,2]
[330281169,1719226247176,-75962.08114275,0.00019077,2]
[330281170,1719226247185,-155.0,0.00019077,2]
[330281171,1719226247194,-1757.44036792,0.00019138,2]
[330281172,1719226247204,-150.79,0.00019168,2]
[330281173,1719226247213,-150.79,0.00019168,2]
[330281174,1719226247223,-500.0,0.00019178,2]
[330281175,1719226247233,-500.0,0.00019178,2]
[330281176,1719226247243,-731.32,0.00019178,2]
[330281177,1719226247252,-500.0,0.00019178,2]
[330281178,1719226247262,-518.43487266,0.00019178,2]
[330281179,1719226247271,-500.0,0.00019178,2]
[330281180,1719226247280,-500.0,0.00019178,2]
[330281181,1719226247290,-501.32717574,0.00019178,2]
[330281182,1719226247299,-500.0,0.00019178,2]
[330281183,1719226247308,-504.18161142,0.00019178,2]
[330281184,1719226247318,-500.0,0.00019178,2]
[330281185,1719226247327,-261.90903467,0.00019178,2]
[330281186,1719226247336,-501.75413467,0.00019178,2]
[330281187,1719226247345,-505.23682205,0.00019178,2]
[330281188,1719226247355,-502.27,0.00019178,2]
[330281189,1719226247364,-500.0,0.00019178,2]
[330281190,1719226247374,-500.0,0.00019178,2]
[330281191,1719226247384,-476.6553314,0.00019178,2]
[330281192,1719226247396,-30.3546686,0.00019178,2]
[330281193,1719226247405,-432.07877238,0.00019178,2]
[330281194,1719226248373,-67.92122762,0.00019178,2]
[330281195,1719226248383,-500.0,0.00019178,2]
[330281196,1719226248393,-500.0,0.00019178,2]
[330281197,1719226248402,-178.66777642,0.00019178,2]
[330281198,1719226248413,-299.975,0.00019178,2]
[330281199,1719226248424,-28.03764019,0.00019178,2]
[330281200,1719226248433,-500.0,0.00019178,2]
[330281201,1719226248443,-514.43685226,0.00019178,2]